fUST/lending_fUST_20250927
["ID","MTS","AMOUNT","RATE_DAILY","PERIOD"]
[388021889,1758967834682,-785.73,0.00035616,9]
[388021891,1758967834692,-729.18,0.00035616,9]
[388021893,1758967834703,-480.0,0.00035616,9]
[388021895,1758967834713,-1453.76,0.00035616,9]
[388021897,1758967834723,-532.3650914,0.00035616,9]
[388021899,1758967834732,-725.48,0.00035616,9]
[388021900,1758967834743,-480.0,0.00035616,9]
[388021902,1758967834753,-480.0,0.00035616,9]
[388021903,1758967834763,-480.0,0.00035616,9]
[388021904,1758967834772,-513.17851023,0.00035616,9]
[388021905,1758967834782,-480.0,0.00035616,9]
[388021906,1758967834792,-480.0,0.00035616,9]
[388021907,1758967834801,-480.0,0.00035616,9]
[388021908,1758967834811,-480.0,0.00035616,9]
[388021909,1758967834820,-1000.0,0.00035616,9]
[388021910,1758967834830,-480.0,0.00035616,9]
[388021912,1758967834839,-370.9300089,0.00035616,9]
[388021913,1758967834849,-480.0,0.00035616,9]
[388021914,1758967834859,-480.0,0.00035616,9]
[388021915,1758967834869,-1141.45,0.00035616,9]
[388021916,1758967834880,-480.0,0.00035616,9]
[388021918,1758967834890,-480.0,0.00035616,9]
[388021919,1758967834899,-630.97,0.00035616,9]
[388021920,1758967834909,-480.0,0.00035616,9]
[388021921,1758967834919,-480.0,0.00035616,9]
[388021922,1758967834928,-480.0,0.00035616,9]
[388021923,1758967834938,-480.0,0.00035616,9]
[388021924,1758967834947,-569.42,0.00035616,9]
[388021925,1758967834957,-480.0,0.00035616,9]
[388021926,1758967834967,-1089.56,0.00035616,9]
[388021927,1758967834976,-818.47,0.00035616,9]
[388021928,1758967834986,-480.0,0.00035616,9]
[388021929,1758967834995,-480.0,0.00035616,9]
[388021930,1758967835006,-480.0,0.00035616,9]
[388021931,1758967835016,-44.46363438,0.00035616,9]
[388021932,1758967835034,-435.53636562,0.00035616,9]
[388021933,1758967835043,-529.76169213,0.00035616,9]
[388021934,1758967835053,-480.0,0.00035616,9]
[388021935,1758967835063,-480.0,0.00035616,9]
[388021936,1758967835072,-480.0,0.00035616,9]
[388021937,1758967835082,-480.0,0.00035616,9]
[388021938,1758967835092,-480.0,0.00035616,9]
[388021939,1758967835102,-480.0,0.00035616,9]
[388021940,1758967835113,-602.48,0.00035616,9]
[388021941,1758967835123,-480.0,0.00035616,9]
[388021942,1758967835132,-480.0,0.00035616,9]
[388021943,1758967835142,-480.0,0.00035616,9]
[388021944,1758967835152,-480.0,0.00035616,9]
[388021945,1758967835162,-480.0,0.00035616,9]
[388021946,1758967835174,-979.91,0.00035616,9]
[388021947,1758967835183,-1632.25,0.00035616,9]
[388021948,1758967835193,-480.0,0.00035616,9]
[388021949,1758967835202,-565.38,0.00035616,9]
[388021950,1758967835211,-480.0,0.00035616,9]
[388021951,1758967835221,-827.26,0.00035616,9]
[388021952,1758967835230,-480.0,0.00035616,9]
[388021953,1758967835241,-480.0,0.00035616,9]
[388021954,1758967835250,-480.0,0.00035616,9]
[388021955,1758967835259,-480.0,0.00035616,9]
[388021956,1758967835268,-480.0,0.00035616,9]
[388021957,1758967835278,-577.81,0.00035616,9]
[388021958,1758967835288,-480.0,0.00035616,9]
[388021959,1758967835297,-480.0,0.00035616,9]
[388021960,1758967835307,-1097.15,0.00035616,9]
[388021961,1758967835316,-502.86,0.00035616,9]
[388021962,1758967835326,-480.0,0.00035616,9]
[388021963,1758967835336,-480.0,0.00035616,9]
[388021964,1758967835347,-480.0,0.00035616,9]
[388021965,1758967835358,-1657.79,0.00035616,9]
[388021966,1758967835368,-532.71976251,0.00035616,9]
[388021967,1758967835377,-480.0,0.00035616,9]
[388021968,1758967835387,-480.0,0.00035616,9]
[388021969,1758967835397,-480.0,0.00035616,9]
[388021970,1758967835407,-483.07,0.00035616,9]
[388021971,1758967835416,-563.52,0.00035616,9]
[388021972,1758967835426,-480.0,0.00035616,9]
[388021973,1758967835436,-816.59,0.00035616,9]
[388021974,1758967835447,-480.0,0.00035616,9]
[388021975,1758967835457,-480.0,0.00035616,9]
[388021976,1758967835467,-480.0,0.00035616,9]
[388021977,1758967835475,-480.0,0.00035616,9]
[388021978,1758967835485,-480.0,0.00035616,9]
[388021979,1758967835494,-944.15,0.00035616,9]
[388021980,1758967835504,-480.0,0.00035616,9]
[388021981,1758967835515,-481.31132786,0.00035616,9]
[388021982,1758967835524,-939.44,0.00035616,9]
[388021983,1758967835533,-480.0,0.00035616,9]
[388021984,1758967835543,-480.0,0.00035616,9]
[388021985,1758967835552,-480.0,0.00035616,9]
[388021986,1758967835562,-480.0,0.00035616,7]
[388021987,1758967835571,-480.0,0.00035616,9]
[388021988,1758967835580,-480.0,0.00035616,9]
[388021989,1758967835589,-480.0,0.00035616,9]
[388021990,1758967835599,-480.0,0.00035616,9]
[388021991,1758967835609,-480.0,0.00035616,9]
[388021992,1758967835619,-414.06018258,0.00035616,9]
[388022011,1758967838970,-233.76631357,0.00033835,2]
[388022012,1758967838980,-65.93981742,0.00035616,9]
[388022013,1758967838990,-480.0,0.00035616,9]
[388022014,1758967838999,-480.0,0.00035616,9]
[388022015,1758967839010,-480.0,0.00035616,9]
[388022016,1758967839019,-480.0,0.00035616,9]
[388022017,1758967839028,-377.12889175,0.00035616,9]
[388022018,1758967839038,-480.0,0.00035616,9]
[388022019,1758967839047,-480.0,0.00035616,9]
[388022020,1758967839057,-480.0,0.00035616,9]
[388022021,1758967839067,-621.78,0.00035616,9]
[388022022,1758967839077,-919.75,0.00035616,9]
[388022023,1758967839086,-488.01,0.00035616,9]
[388022024,1758967839096,-480.0,0.00035616,9]
[388022025,1758967839106,-2761.97,0.00035616,9]
[388022026,1758967839115,-956.73,0.00035616,9]
[388022027,1758967839124,-124.53694804,0.00035616,9]
[388022028,1758967839143,-355.46305196,0.00035616,9]
[388022029,1758967839153,-480.0,0.00035616,9]
[388022030,1758967839166,-553.01,0.00035616,9]
[388022031,1758967839181,-480.0,0.00035616,9]
[388022032,1758967839191,-2480.44,0.00035616,9]
[388022033,1758967839201,-2813.27,0.00035616,9]
[388022034,1758967839212,-480.0,0.00035616,9]
[388022035,1758967839222,-480.0,0.00035616,9]
[388022036,1758967839231,-1892.2,0.00035616,9]
[388022037,1758967839241,-244.99013106,0.00035616,9]
[388022038,1758967839252,-500.66,0.00035616,9]
[388022039,1758967839261,-480.0,0.00035616,9]
[388022040,1758967839271,-480.0,0.00035616,9]
[388022041,1758967839280,-480.0,0.00035616,9]
[388022042,1758967839289,-461.56508481,0.00035616,9]
[388022043,1758967839298,-671.69,0.00035616,9]
[388022044,1758967839308,-698.22,0.00035616,9]
[388022045,1758967839317,-814.55,0.00035616,9]
[388022046,1758967839327,-480.0,0.00035616,9]
[388022047,1758967839336,-3198.24,0.00035616,9]
[388022048,1758967839346,-480.0,0.00035616,9]
[388022049,1758967839355,-516.51,0.00035616,9]
[388022050,1758967839364,-483.34898148,0.00035616,9]
[388022051,1758967839373,-480.0,0.00035616,9]
[388022052,1758967839382,-480.0,0.00035616,9]
[388022053,1758967839391,-480.0,0.00035616,9]
[388022054,1758967839400,-480.0,0.00035616,9]
[388022055,1758967839410,-480.0,0.00035616,9]
[388022056,1758967839419,-480.0,0.00035616,9]
[388022057,1758967839428,-480.0,0.00035616,9]
[388022058,1758967839437,-480.0,0.00035616,9]
[388022059,1758967839446,-480.0,0.00035616,9]
[388022060,1758967839454,-480.0,0.00035616,9]
[388022061,1758967839463,-669.16,0.00035616,9]
[388022062,1758967839472,-480.0,0.00035616,9]
[388022063,1758967839481,-480.0,0.00035616,9]
[388022064,1758967839490,-1217.4,0.00035616,9]
[388022065,1758967839499,-640.97,0.00035616,9]
[388022066,1758967839508,-1787.15,0.00035616,9]
[388022067,1758967839517,-480.0,0.00035616,9]
[388022068,1758967839526,-486.29123163,0.00035616,9]
[388022069,1758967839535,-259.86,0.00035616,9]
[388022070,1758967839544,-448.78354047,0.00035616,9]
[388022071,1758967839554,-486.32062007,0.00035616,9]
[388022072,1758967839565,-480.0,0.00035616,9]
[388022073,1758967839574,-562.26,0.00035616,9]
[388022074,1758967839583,-480.0,0.00035616,9]
[388022075,1758967839592,-295.96066006,0.00035616,9]
[388022076,1758967839601,-480.0,0.00035616,9]
[388022077,1758967839610,-963.64,0.00035616,9]
[388022078,1758967839619,-480.0,0.00035616,9]
[388022079,1758967839628,-480.0,0.00035616,9]
[388022080,1758967839637,-480.0,0.00035616,9]
[388022081,1758967839646,-480.0,0.00035616,9]
[388022082,1758967839656,-520.23,0.00035616,9]
[388022083,1758967839666,-480.0,0.00035616,9]
[388022084,1758967839675,-480.0,0.00035616,9]
[388022085,1758967839684,-480.0,0.00035616,9]
[388022086,1758967839694,-480.0,0.00035616,9]
[388022087,1758967839703,-500.0,0.00035616,9]
[388022088,1758967839712,-480.0,0.00035616,9]
[388022089,1758967839721,-480.0,0.00035616,9]
[388022090,1758967839730,-480.0,0.00035616,9]
[388022091,1758967839740,-480.0,0.00035616,9]
[388022092,1758967839757,-480.0,0.00035616,9]
[388022093,1758967839770,-480.0,0.00035616,9]
[388022094,1758967839780,-481.78275944,0.00035616,9]
[388022095,1758967839789,-480.0,0.00035616,9]
[388022096,1758967839798,-480.0,0.00035616,9]
[388022097,1758967839808,-486.08548576,0.00035616,9]
[388022098,1758967839818,-1280.75,0.00035616,9]
[388022099,1758967839827,-562.64818457,0.00035616,9]
[388022100,1758967839847,-480.0,0.00035616,9]
[388022101,1758967839856,-480.0,0.00035616,9]
[388022102,1758967839865,-480.0,0.00035616,9]
[388022103,1758967839874,-480.0,0.00035616,9]
[388022104,1758967839883,-73.97796956,0.00035616,9]
[388022105,1758967839897,-406.02203044,0.00035616,9]
[388022106,1758967839906,-480.0,0.00035616,9]
[388022107,1758967839915,-415.10086081,0.00035616,9]
[388022108,1758967839929,-64.89913919,0.00035616,9]
[388022109,1758967839938,-480.0,0.00035616,9]
[388022110,1758967839947,-564.24010821,0.00035616,9]
[388022111,1758967839957,-480.0,0.00035616,9]
[388022113,1758967839966,-494.55,0.00035616,9]
[388022114,1758967839975,-480.0,0.00035616,9]
[388022115,1758967839984,-480.0,0.00035616,9]
[388022116,1758967839993,-631.42,0.00035616,9]
[388022118,1758967840003,-480.0,0.00035616,9]
[388022120,1758967840012,-300.89719028,0.00035616,9]
[388022123,1758967840023,-179.10280972,0.00035616,9]
[388022126,1758967840033,-480.0,0.00035616,9]
[388022129,1758967840043,-304.75049542,0.00035616,9]
[388022132,1758967840054,-205.28956199,0.00035616,9]
[388022134,1758967840063,-480.0,0.00035616,9]
[388022136,1758967840074,-318.61243902,0.00035616,9]
[388022141,1758967840113,-2534.42756098,0.00035616,9]
[388022143,1758967840123,-544.74,0.00035616,9]
[388022144,1758967840132,-480.0,0.00035616,9]
[388022145,1758967840141,-480.0,0.00035616,9]
[388022146,1758967840150,-480.0,0.00035616,9]
[388022147,1758967840161,-1188.21,0.00035616,9]
[388022149,1758967840170,-480.0,0.00035616,9]
[388022151,1758967840183,-480.0,0.00035616,9]
[388022152,1758967840193,-480.0,0.00035616,9]
[388022154,1758967840204,-480.0,0.00035616,9]
[388022156,1758967840214,-480.0,0.00035616,9]
[388022157,1758967840223,-480.0,0.00035616,9]
[388022158,1758967840234,-1333.43,0.00035616,9]
[388022159,1758967840244,-480.0,0.00035616,9]
[388022160,1758967840254,-542.83,0.00035616,9]
[388022161,1758967840264,-484.96088802,0.00035616,9]
[388022162,1758967840274,-480.0,0.00035616,9]
[388022163,1758967840283,-480.0,0.00035616,9]
[388022164,1758967840293,-480.0,0.00035616,9]
[388022165,1758967840303,-480.0,0.00035616,9]
[388022166,1758967840314,-2206.79,0.00035616,9]
[388022167,1758967840324,-480.0,0.00035616,9]
[388022169,1758967840334,-400.63759769,0.00035616,9]
[388022170,1758967840343,-480.0,0.00035616,9]
[388022171,1758967840352,-480.0,0.00035616,9]
[388022172,1758967840361,-480.0,0.00035616,9]
[388022173,1758967840370,-1580.77,0.00035616,9]
[388022174,1758967840380,-494.68783006,0.00035616,9]
[388022175,1758967840390,-500.0,0.00035616,9]
[388022176,1758967840400,-480.0,0.00035616,9]
[388022177,1758967840409,-567.89,0.00035616,9]
[388022178,1758967840419,-480.0,0.00035616,9]
[388022179,1758967840429,-498.17920867,0.00035616,9]
[388022180,1758967840438,-480.0,0.00035616,9]
[388022181,1758967840447,-1000.0,0.00035616,9]
[388022182,1758967840456,-1238.84,0.00035616,9]
[388022183,1758967840466,-480.0,0.00035616,9]
[388022184,1758967840475,-480.0,0.00035616,9]
[388022185,1758967840485,-480.0,0.00035616,9]
[388022186,1758967840494,-480.0,0.00035616,9]
[388022187,1758967840504,-480.0,0.00035616,9]
[388022188,1758967840513,-480.0,0.00035616,9]
[388022189,1758967840522,-609.80441387,0.00035616,9]
[388022190,1758967840531,-480.0,0.00035616,9]
[388022191,1758967840541,-558.44,0.00035616,9]
[388022192,1758967840551,-5448.25,0.00035616,3]
[388022193,1758967840560,-480.0,0.00035616,9]
[388022194,1758967840569,-713.53,0.00035616,9]
[388022195,1758967840579,-7667.52,0.00035616,9]
[388022196,1758967840588,-480.0,0.00035616,9]
[388022197,1758967840597,-483.68002941,0.00035616,9]
[388022198,1758967840607,-14041.91,0.00035616,9]
[388022199,1758967840616,-480.0,0.00035616,9]
[388022200,1758967840625,-480.0,0.00035616,9]
[388022201,1758967840635,-480.0,0.00035616,9]
[388022202,1758967840644,-534.07,0.00035616,9]
[388022203,1758967840653,-1250.62,0.00035616,9]
[388022204,1758967840663,-480.0,0.00035616,9]
[388022205,1758967840672,-480.0,0.00035616,9]
[388022206,1758967840681,-586.1,0.00035616,9]
[388022207,1758967840691,-613.33,0.00035616,9]
[388022208,1758967840700,-2161.15,0.00035616,9]
[388022209,1758967840709,-480.0,0.00035616,9]
[388022210,1758967840718,-480.0,0.00035616,9]
[388022211,1758967840727,-915.07,0.00035616,9]
[388022212,1758967840736,-2791.22,0.00035616,9]
[388022213,1758967840745,-733.5,0.00035616,9]
[388022214,1758967840756,-480.0,0.00035616,9]
[388022215,1758967840766,-656.78,0.00035616,9]
[388022216,1758967840776,-1048.12,0.00035616,9]
[388022217,1758967840785,-480.0,0.00035616,9]
[388022218,1758967840794,-480.0,0.00035616,9]
[388022219,1758967840803,-3216.81,0.00035616,9]
[388022220,1758967840812,-480.0,0.00035616,9]
[388022221,1758967840822,-480.0,0.00035616,9]
[388022222,1758967840831,-873.09,0.00035616,9]
[388022223,1758967840840,-480.0,0.00035616,9]
[388022224,1758967840849,-1157.66,0.00035616,9]
[388022225,1758967840858,-672.29,0.00035616,9]
[388022226,1758967840868,-480.0,0.00035616,9]
[388022227,1758967840877,-497.21,0.00035616,9]
[388022228,1758967840886,-317.10807298,0.00035616,9]
[388022229,1758967840896,-1501.46,0.00035616,9]
[388022230,1758967840905,-480.0,0.00035616,9]
[388022231,1758967840914,-906.5,0.00035616,9]
[388022232,1758967840923,-480.0,0.00035616,9]
[388022233,1758967840932,-543.25,0.00035616,9]
[388022234,1758967840941,-480.0,0.00035616,9]
[388022236,1758967840951,-3374.3,0.00035616,9]
[388022238,1758967840960,-730.94,0.00035616,9]
[388022240,1758967840969,-480.0,0.00035616,9]
[388022242,1758967840978,-480.0,0.00035616,9]
[388022244,1758967840987,-480.0,0.00035616,9]
[388022246,1758967840996,-2075.92,0.00035616,9]
[388022248,1758967841006,-480.0,0.00035616,9]
[388022249,1758967841015,-480.0,0.00035616,9]
[388022251,1758967841024,-480.0,0.00035616,9]
[388022253,1758967841033,-480.0,0.00035616,9]
[388022255,1758967841046,-480.0,0.00035616,9]
[388022256,1758967841055,-480.0,0.00035616,9]
[388022257,1758967841064,-480.0,0.00035616,9]
[388022258,1758967841073,-480.0,0.00035616,9]
[388022259,1758967841084,-480.0,0.00035616,7]
[388022260,1758967841094,-480.0,0.00035616,9]
[388022262,1758967841103,-480.0,0.00035616,9]
[388022263,1758967841112,-480.0,0.00035616,9]
[388022264,1758967841121,-480.0,0.00035616,9]
[388022265,1758967841131,-2495.72,0.00035616,9]
[388022266,1758967841140,-3876.05,0.00035616,9]
[388022267,1758967841149,-480.0,0.00035616,9]
[388022268,1758967841160,-480.0,0.00035616,9]
[388022269,1758967841169,-480.0,0.00035616,9]
[388022270,1758967841182,-480.0,0.00035616,9]
[388022271,1758967841193,-480.0,0.00035616,9]
[388022272,1758967841202,-905.33,0.00035616,9]
[388022273,1758967841211,-619.29,0.00035616,9]
[388022274,1758967841222,-480.0,0.00035616,9]
[388022275,1758967841231,-3502.1,0.00035616,9]
[388022276,1758967841240,-719.58,0.00035616,9]
[388022277,1758967841249,-480.0,0.00035616,9]
[388022278,1758967841259,-1233.94,0.00035616,9]
[388022279,1758967841268,-887.94,0.00035616,9]
[388022280,1758967841277,-487.60148786,0.00035616,9]
[388022281,1758967841286,-480.0,0.00035616,9]
[388022282,1758967841296,-480.0,0.00035616,9]
[388022283,1758967841305,-2859.13,0.00035616,9]
[388022284,1758967841315,-6749.2,0.00035616,9]
[388022285,1758967841324,-856.35,0.00035616,9]
[388022286,1758967841334,-480.0,0.00035616,9]
[388022287,1758967841343,-480.0,0.00035616,9]
[388022288,1758967841352,-544.15,0.00035616,9]
[388022289,1758967841361,-5498.01,0.00035616,9]
[388022290,1758967841371,-3504.99,0.00035616,9]
[388022291,1758967841380,-480.0,0.00035616,9]
[388022292,1758967841389,-480.0,0.00035616,9]
[388022293,1758967841399,-480.0,0.00035616,9]
[388022294,1758967841408,-480.0,0.00035616,9]
[388022295,1758967841417,-480.0,0.00035616,9]
[388022296,1758967841426,-2026.55,0.00035616,9]
[388022297,1758967841436,-480.0,0.00035616,9]
[388022298,1758967841445,-499.07206973,0.00035616,9]
[388022299,1758967841455,-1223.18,0.00035616,9]
[388022300,1758967841464,-480.0,0.00035616,9]
[388022301,1758967841473,-1270.66,0.00035616,9]
[388022302,1758967841483,-480.0,0.00035616,9]
[388022303,1758967841492,-3670.98,0.00035616,9]
[388022304,1758967841501,-480.0,0.00035616,9]
[388022305,1758967841682,-480.0,0.00035616,9]
[388022306,1758967841692,-836.75,0.00035616,9]
[388022307,1758967841702,-3843.16,0.00035616,9]
[388022308,1758967841711,-480.0,0.00035616,9]
[388022309,1758967841721,-623.29831451,0.00035616,9]
[388022310,1758967841730,-480.0,0.00035616,9]
[388022311,1758967841739,-568.45,0.00035616,9]
[388022312,1758967841749,-480.0,0.00035616,9]
[388022313,1758967841759,-480.0,0.00035616,9]
[388022314,1758967841768,-480.0,0.00035616,9]
[388022315,1758967841779,-261.97844139,0.00035616,9]
[388022316,1758967841788,-2012.67,0.00035616,9]
[388022317,1758967841799,-953.82,0.00035616,9]
[388022318,1758967841808,-510.71,0.00035616,9]
[388022319,1758967841819,-480.0,0.00035616,9]
[388022320,1758967841828,-480.0,0.00035616,9]
[388022321,1758967841837,-480.0,0.00035616,9]
[388022322,1758967841847,-487.59041783,0.00035616,9]
[388022323,1758967841857,-480.0,0.00035616,9]
[388022324,1758967841867,-480.0,0.00035616,9]
[388022325,1758967841876,-1950.8,0.00035616,9]
[388022326,1758967841887,-209.53726888,0.00035616,9]
[388022327,1758967841896,-1306.12,0.00035616,9]
[388022328,1758967841906,-480.0,0.00035616,9]
[388022329,1758967841915,-480.0,0.00035616,9]
[388022330,1758967841924,-480.0,0.00035616,9]
[388022331,1758967841934,-480.0,0.00035616,9]
[388022332,1758967841943,-480.0,0.00035616,9]
[388022333,1758967841953,-1131.37,0.00035616,9]
[388022334,1758967841962,-480.0,0.00035616,9]
[388022335,1758967841971,-480.0,0.00035616,9]
[388022336,1758967841981,-480.0,0.00035616,9]
[388022337,1758967841990,-480.0,0.00035616,9]
[388022338,1758967841999,-934.15,0.00035616,9]
[388022339,1758967842008,-1972.52,0.00035616,9]
[388022340,1758967842017,-480.0,0.00035616,9]
[388022341,1758967842027,-1390.99,0.00035616,9]
[388022342,1758967842036,-657.83,0.00035616,9]
[388022343,1758967842046,-480.0,0.00035616,9]
[388022344,1758967842055,-1212.15,0.00035616,9]
[388022345,1758967842065,-480.0,0.00035616,9]
[388022346,1758967842076,-480.0,0.00035616,9]
[388022347,1758967842086,-480.0,0.00035616,9]
[388022348,1758967842095,-480.0,0.00035616,9]
[388022349,1758967842103,-826.94,0.00035616,9]
[388022350,1758967842111,-480.0,0.00035616,9]
[388022351,1758967842119,-940.28,0.00035616,9]
[388022352,1758967842129,-774.72,0.00035616,9]
[388022353,1758967842138,-1985.66,0.00035616,9]
[388022354,1758967842147,-480.0,0.00035616,9]
[388022355,1758967842156,-788.26,0.00035616,9]
[388022356,1758967842166,-2321.35,0.00035616,9]
[388022357,1758967842176,-480.0,0.00035616,9]
[388022358,1758967842189,-500.95,0.00035616,9]
[388022359,1758967842198,-1471.86,0.00035616,9]
[388022360,1758967842207,-4769.66,0.00035616,9]
[388022361,1758967842216,-1531.4,0.00035616,9]
[388022362,1758967842226,-778.44,0.00035616,9]
[388022363,1758967842235,-480.0,0.00035616,9]
[388022364,1758967842244,-480.0,0.00035616,9]
[388022365,1758967842254,-480.0,0.00035616,9]
[388022366,1758967842265,-480.0,0.00035616,9]
[388022367,1758967842275,-480.0,0.00035616,9]
[388022368,1758967842284,-2540.7,0.00035616,9]
[388022369,1758967842293,-480.0,0.00035616,9]
[388022370,1758967842303,-480.0,0.00035616,9]
[388022371,1758967842319,-3100.68,0.00035616,9]
[388022372,1758967842329,-480.0,0.00035616,9]
[388022373,1758967842339,-480.0,0.00035616,9]
[388022374,1758967842350,-4297.83,0.00035616,9]
[388022375,1758967842359,-7072.25,0.00035616,9]
[388022376,1758967842368,-746.53,0.00035616,9]
[388022377,1758967842377,-480.0,0.00035616,9]
[388022378,1758967842387,-480.0,0.00035616,9]
[388022379,1758967842396,-480.0,0.00035616,9]
[388022380,1758967842405,-480.0,0.00035616,9]
[388022381,1758967842414,-480.0,0.00035616,9]
[388022382,1758967842424,-480.0,0.00035616,9]
[388022383,1758967842433,-480.0,0.00035616,9]
[388022384,1758967842442,-670.36,0.00035616,9]
[388022385,1758967842451,-480.0,0.00035616,9]
[388022386,1758967842460,-480.0,0.00035616,9]
[388022387,1758967842470,-480.0,0.00035616,9]
[388022388,1758967842479,-480.0,0.00035616,9]
[388022389,1758967842488,-2349.05,0.00035616,9]
[388022390,1758967842497,-492.26492318,0.00035616,9]
[388022391,1758967842507,-480.0,0.00035616,9]
[388022392,1758967842516,-637.96,0.00035616,9]
[388022393,1758967842525,-3547.38,0.00035616,9]
[388022394,1758967842535,-480.0,0.00035616,9]
[388022395,1758967842544,-490.17495306,0.00035616,9]
[388022396,1758967842553,-4005.55,0.00035616,9]
[388022397,1758967842562,-480.0,0.00035616,9]
[388022398,1758967842571,-480.0,0.00035616,9]
[388022399,1758967842581,-1893.43,0.00035616,9]
[388022400,1758967842591,-480.0,0.00035616,9]
[388022401,1758967842601,-932.1,0.00035616,9]
[388022402,1758967842611,-400.0,0.00035616,9]
[388022403,1758967842620,-594.73940393,0.00035616,9]
[388022404,1758967842630,-480.0,0.00035616,9]
[388022405,1758967842639,-480.0,0.00035616,9]
[388022406,1758967842648,-480.0,0.00035616,9]
[388022407,1758967842657,-1323.4,0.00035616,9]
[388022408,1758967842666,-480.0,0.00035616,9]
[388022409,1758967842675,-480.0,0.00035616,9]
[388022410,1758967842685,-480.0,0.00035616,9]
[388022411,1758967842695,-752.99,0.00035616,9]
[388022412,1758967842704,-2465.76,0.00035616,9]
[388022413,1758967842715,-500.0,0.00035673,5]
[388022414,1758967842724,-500.0,0.00035673,5]
[388022415,1758967842733,-500.0,0.00035673,5]
[388022416,1758967842743,-500.0,0.00035673,5]
[388022417,1758967842752,-500.0,0.00035673,5]
[388022418,1758967842761,-601.31019936,0.00035673,5]
[388022419,1758967842770,-161.42545498,0.00035673,5]
[388022420,1758967842779,-500.0,0.00035673,5]
[388022421,1758967842789,-500.0,0.00035673,5]
[388022422,1758967842798,-163.65419057,0.00035673,5]
[388022423,1758967842808,-407.52132722,0.00035673,5]
[388022424,1758967842817,-500.0,0.00035673,5]
[388022425,1758967842826,-500.0,0.00035673,5]
[388022426,1758967842835,-500.0,0.00035673,5]
[388022427,1758967842844,-228.81988074,0.00035673,5]
[388022428,1758967842854,-500.0,0.00035673,5]
[388022429,1758967842863,-160.0,0.000357,2]
[388022430,1758967842872,-5215.60405822,0.0003573,2]
[388022431,1758967842881,-500.0,0.00035873,5]
[388022432,1758967842891,-500.0,0.00035873,5]
[388022433,1758967842900,-501.49119954,0.00035873,5]
[388022434,1758967842910,-501.19887383,0.00035873,5]
[388022435,1758967842919,-500.0,0.00035873,5]
[388022436,1758967842929,-500.0,0.00035873,5]
[388022437,1758967842938,-500.0,0.00035873,5]
[388022438,1758967842947,-160.0,0.0003588,3]
[388022439,1758967842956,-666.2,0.00035889,9]
[388022440,1758967842965,-666.2,0.00035889,9]
[388022441,1758967842975,-666.2,0.00035889,9]
[388022442,1758967842984,-480.0,0.0003589,9]
[388022443,1758967842994,-480.0,0.0003589,9]
[388022444,1758967843004,-480.0,0.0003589,9]
[388022445,1758967843014,-480.0,0.0003589,9]
[388022446,1758967843024,-480.0,0.0003589,9]
[388022447,1758967843033,-480.0,0.0003589,9]
[388022448,1758967843044,-480.0,0.0003589,9]